[Event "Live Chess"]
[Site "Chess.com"]
[Date "2023.05.21"]
[Round "-"]
[White "PaulHumphreys"]
[Black "1PRK1"]
[Result "0-1"]
[WhiteElo "1346"]
[BlackElo "1357"]
[TimeControl "300"]
[EndTime "4:08:36 PDT"]
[Termination "1PRK1 won by resignation"]

1. d4 {[%clk 0:04:57.9]} 1... Nf6 {[%clk 0:04:57.2]} 2. Nc3 {[%clk 0:04:57.8]}
2... e6 {[%clk 0:04:53.7]} 3. e4 {[%clk 0:04:53.8]} 3... d5 {[%clk 0:04:49.6]}
4. e5 {[%clk 0:04:50.5]} 4... Nfd7 {[%clk 0:04:47.7]} 5. f4 {[%clk 0:04:49.4]}
5... c5 {[%clk 0:04:46]} 6. Be3 {[%clk 0:04:46.3]} 6... a6 {[%clk 0:04:39.4]} 7.
Nf3 {[%clk 0:04:45]} 7... Nc6 {[%clk 0:04:29.8]} 8. Be2 {[%clk 0:04:42.8]} 8...
Be7 {[%clk 0:04:24.9]} 9. O-O {[%clk 0:04:36.9]} 9... O-O {[%clk 0:04:22.5]} 10.
Bd3 {[%clk 0:04:23.3]} 10... c4 {[%clk 0:04:20.3]} 11. Be2 {[%clk 0:04:20.8]}
11... b5 {[%clk 0:04:16.7]} 12. a3 {[%clk 0:04:13.8]} 12... b4 {[%clk 0:04:07]}
13. Na4 {[%clk 0:04:03.4]} 13... a5 {[%clk 0:03:56.7]} 14. Nc5 {[%clk
0:03:58.1]} 14... Nxc5 {[%clk 0:03:53.6]} 15. dxc5 {[%clk 0:03:56.3]} 15... f6
{[%clk 0:03:28.9]} 16. Nd4 {[%clk 0:03:52]} 16... Nxd4 {[%clk 0:03:19.1]} 17.
Bxd4 {[%clk 0:03:48]} 17... Qc7 {[%clk 0:03:04.7]} 18. Bh5 {[%clk 0:03:25.8]}
18... Bxc5 {[%clk 0:02:53.4]} 19. Kh1 {[%clk 0:03:17.7]} 19... Qb6 {[%clk
0:02:40.7]} 20. c3 {[%clk 0:03:03.5]} 20... b3 {[%clk 0:02:33.3]} 21. exf6
{[%clk 0:02:56.6]} 21... Bxd4 {[%clk 0:02:30.7]} 22. fxg7 {[%clk 0:02:52.3]}
22... Bxg7 {[%clk 0:02:24.5]} 23. Qg4 {[%clk 0:02:47.5]} 23... e5 {[%clk
0:02:14.1]} 24. Qg5 {[%clk 0:02:36]} 24... Rf5 {[%clk 0:01:59.5]} 25. Qh4 {[%clk
0:02:23]} 25... Qf6 {[%clk 0:01:39.7]} 26. Qxf6 {[%clk 0:02:10.6]} 26... Bxf6
{[%clk 0:01:34.4]} 27. Bg4 {[%clk 0:02:01.3]} 27... Rxf4 {[%clk 0:01:32.6]} 28.
Rxf4 {[%clk 0:02:00]} 28... exf4 {[%clk 0:01:29.2]} 29. Bxc8 {[%clk 0:01:56.4]}
29... Rxc8 {[%clk 0:01:27.1]} 30. Re1 {[%clk 0:01:55.1]} 30... Kf7 {[%clk
0:01:24.7]} 31. Kg1 {[%clk 0:01:52.2]} 31... Re8 {[%clk 0:01:22.9]} 0-1

[Event "Live Chess"]
[Site "Chess.com"]
[Date "2023.05.21"]
[Round "-"]
[White "CeladonFish"]
[Black "chessleanstrategist"]
[Result "1-0"]
[WhiteElo "1082"]
[BlackElo "462"]
[TimeControl "300"]
[EndTime "4:08:50 PDT"]
[Termination "CeladonFish won on time"]

1. d4 {[%clk 0:04:58.9]} 1... Nf6 {[%clk 0:04:58]} 2. c4 {[%clk 0:04:57.7]} 2...
d5 {[%clk 0:04:45.3]} 3. Nc3 {[%clk 0:04:55.2]} 3... e6 {[%clk 0:04:35.8]} 4.
Bf4 {[%clk 0:04:50.1]} 4... g6 {[%clk 0:04:18.8]} 5. Nb5 {[%clk 0:04:45.7]} 5...
Bd6 {[%clk 0:04:03.6]} 6. Bxd6 {[%clk 0:04:38]} 6... cxd6 {[%clk 0:03:59.7]} 7.
Qa4 {[%clk 0:04:36.8]} 7... Nc6 {[%clk 0:03:48.2]} 8. cxd5 {[%clk 0:04:33.7]}
8... Nxd5 {[%clk 0:03:44]} 9. e4 {[%clk 0:04:29.5]} 9... Nb6 {[%clk 0:03:41]}
10. Qc2 {[%clk 0:04:19.8]} 10... d5 {[%clk 0:03:23.1]} 11. exd5 {[%clk
0:04:16.7]} 11... exd5 {[%clk 0:03:21.5]} 12. Nf3 {[%clk 0:04:00]} 12... O-O
{[%clk 0:03:20.1]} 13. Be2 {[%clk 0:03:55.4]} 13... Re8 {[%clk 0:03:18.4]} 14.
O-O {[%clk 0:03:52.3]} 14... Bf5 {[%clk 0:03:08]} 15. Bd3 {[%clk 0:03:46.4]}
15... Bxd3 {[%clk 0:03:05.3]} 16. Qxd3 {[%clk 0:03:43.8]} 16... Nb4 {[%clk
0:02:54.2]} 17. Qc3 {[%clk 0:03:27.7]} 17... a5 {[%clk 0:02:46.6]} 18. Nc7
{[%clk 0:03:24.9]} 18... Nc4 {[%clk 0:02:09.7]} 19. Nxa8 {[%clk 0:03:16.9]}
19... Qxa8 {[%clk 0:02:08.4]} 20. b3 {[%clk 0:03:10.7]} 20... Nd6 {[%clk
0:01:54]} 21. a3 {[%clk 0:03:06.7]} 21... Rc8 {[%clk 0:01:52.4]} 22. Qe3 {[%clk
0:02:54.1]} 22... Nc2 {[%clk 0:01:46.9]} 23. Qe7 {[%clk 0:02:44.6]} 23... Nxa1
{[%clk 0:01:41.1]} 24. Rxa1 {[%clk 0:02:42.5]} 24... Nf5 {[%clk 0:01:22.5]} 25.
Qe5 {[%clk 0:02:26.6]} 25... Re8 {[%clk 0:01:18.7]} 26. Qxd5 {[%clk 0:02:21.1]}
26... b6 {[%clk 0:00:49.3]} 27. Qxa8 {[%clk 0:02:14.9]} 27... Rxa8 {[%clk
0:00:48.9]} 28. Rd1 {[%clk 0:02:08.7]} 28... Rd8 {[%clk 0:00:48.1]} 29. h3
{[%clk 0:01:55.2]} 29... Kg7 {[%clk 0:00:47]} 30. d5 {[%clk 0:01:53.4]} 30...
Kf6 {[%clk 0:00:44.6]} 31. g4 {[%clk 0:01:46]} 31... Nd6 {[%clk 0:00:38.9]} 32.
Nd4 {[%clk 0:01:40.5]} 32... Ne4 {[%clk 0:00:09.8]} 33. Nc6 {[%clk 0:01:34]}
33... Rd6 {[%clk 0:00:02.2]} 34. f3 {[%clk 0:01:29.5]} 1-0

[Event "Live Chess"]
[Site "Chess.com"]
[Date "2023.05.21"]
[Round "-"]
[White "Misha145Chess"]
[Black "Brooms1989"]
[Result "0-1"]
[WhiteElo "621"]
[BlackElo "1138"]
[TimeControl "300"]
[EndTime "4:08:57 PDT"]
[Termination "Brooms1989 won by checkmate"]

1. g4 {[%clk 0:04:57.4]} 1... e5 {[%clk 0:04:56]} 2. Bg2 {[%clk 0:04:57.3]} 2...
d5 {[%clk 0:04:54.4]} 3. d4 {[%clk 0:04:54.3]} 3... e4 {[%clk 0:04:49.4]} 4. Nc3
{[%clk 0:04:51.5]} 4... Bxg4 {[%clk 0:04:47.3]} 5. f3 {[%clk 0:04:50]} 5... exf3
{[%clk 0:04:44.9]} 6. exf3 {[%clk 0:04:49.2]} 6... Be6 {[%clk 0:04:43.1]} 7. f4
{[%clk 0:04:46]} 7... Nf6 {[%clk 0:04:36.3]} 8. f5 {[%clk 0:04:41.9]} 8... Bd7
{[%clk 0:04:31.7]} 9. Nxd5 {[%clk 0:04:38.8]} 9... Nxd5 {[%clk 0:04:30.6]} 10.
Bxd5 {[%clk 0:04:37.5]} 10... Bc6 {[%clk 0:04:28.8]} 11. Bxc6+ {[%clk 0:04:36]}
11... Nxc6 {[%clk 0:04:27.8]} 12. d5 {[%clk 0:04:34.6]} 12... Qh4+ {[%clk
0:04:18.5]} 13. Kd2 {[%clk 0:04:17.3]} 13... O-O-O {[%clk 0:04:16.1]} 14. Ke3
{[%clk 0:04:11]} 14... Qh6+ {[%clk 0:04:06.3]} 15. Ke2 {[%clk 0:04:07.6]} 15...
Qh5+ {[%clk 0:04:01.5]} 16. Ke3 {[%clk 0:04:04.4]} 16... Bc5+ {[%clk 0:04:00.2]}
17. Ke4 {[%clk 0:03:55.8]} 17... Rhe8+ {[%clk 0:03:56.3]} 18. Kd3 {[%clk
0:03:53]} 18... Rxd5+ {[%clk 0:03:53.2]} 19. Kc4 {[%clk 0:03:50.4]} 19... Qxd1
{[%clk 0:03:47.1]} 20. c3 {[%clk 0:03:40.5]} 20... Ne5+ {[%clk 0:03:33.1]} 21.
Kb5 {[%clk 0:03:37.2]} 21... a6+ {[%clk 0:03:29.6]} 22. Ka5 {[%clk 0:03:35.7]}
22... Be7# {[%clk 0:03:15]} 0-1

[Event "Live Chess"]
[Site "Chess.com"]
[Date "2023.05.21"]
[Round "-"]
[White "Bunny55"]
[Black "JoeyCage"]
[Result "0-1"]
[WhiteElo "982"]
[BlackElo "2302"]
[TimeControl "300"]
[EndTime "4:09:06 PDT"]
[Termination "JoeyCage won by resignation"]

1. e4 {[%clk 0:04:56]} 1... c5 {[%clk 0:04:58.9]} 2. Nf3 {[%clk 0:04:54.9]} 2...
Nc6 {[%clk 0:04:57.6]} 3. d4 {[%clk 0:04:53.8]} 3... cxd4 {[%clk 0:04:56.5]} 4.
Nxd4 {[%clk 0:04:52.9]} 4... g6 {[%clk 0:04:55.2]} 5. Be3 {[%clk 0:04:50.4]}
5... Bg7 {[%clk 0:04:54.2]} 6. Nc3 {[%clk 0:04:48.4]} 6... Nf6 {[%clk 0:04:53]}
7. f3 {[%clk 0:04:47.3]} 7... O-O {[%clk 0:04:51.6]} 8. Bc4 {[%clk 0:04:45.8]}
8... Qb6 {[%clk 0:04:46.2]} 9. Qd2 {[%clk 0:04:31.5]} 9... Nxe4 {[%clk
0:04:44.4]} 10. fxe4 {[%clk 0:04:29.1]} 10... Bxd4 {[%clk 0:04:41.5]} 11. Bxd4
{[%clk 0:04:26.9]} 11... Qxd4 {[%clk 0:04:39.4]} 0-1

[Event "Live Chess"]
[Site "Chess.com"]
[Date "2023.05.21"]
[Round "-"]
[White "Abde2012"]
[Black "friarnator"]
[Result "0-1"]
[WhiteElo "743"]
[BlackElo "1995"]
[TimeControl "300"]
[EndTime "4:09:07 PDT"]
[Termination "friarnator won by resignation"]

1. d4 {[%clk 0:04:55.3]} 1... Nf6 {[%clk 0:04:59.4]} 2. c4 {[%clk 0:04:53.9]}
2... e5 {[%clk 0:04:58.9]} 3. dxe5 {[%clk 0:04:50.5]} 3... Ng4 {[%clk
0:04:58.2]} 4. Bf4 {[%clk 0:04:45.7]} 4... Nc6 {[%clk 0:04:57.2]} 5. Nf3 {[%clk
0:04:44.9]} 5... Bb4+ {[%clk 0:04:54.1]} 6. Nbd2 {[%clk 0:04:41.6]} 6... Qe7
{[%clk 0:04:53.4]} 7. e3 {[%clk 0:04:38]} 7... Ngxe5 {[%clk 0:04:51.9]} 8. Bxe5
{[%clk 0:04:34.3]} 8... Nxe5 {[%clk 0:04:51.8]} 9. Nxe5 {[%clk 0:04:33.4]} 9...
Qxe5 {[%clk 0:04:50.3]} 10. Bd3 {[%clk 0:04:29.9]} 10... Qxb2 {[%clk 0:04:48.1]}
11. O-O {[%clk 0:04:24.6]} 11... Qxd2 {[%clk 0:04:45.6]} 12. Qxd2 {[%clk
0:04:23.3]} 12... Bxd2 {[%clk 0:04:45.5]} 13. Rfd1 {[%clk 0:04:21]} 13... Bc3
{[%clk 0:04:44.7]} 14. Rdc1 {[%clk 0:04:17.6]} 14... Bxa1 {[%clk 0:04:42.8]} 15.
Rxa1 {[%clk 0:04:16]} 15... d6 {[%clk 0:04:42.5]} 0-1

[Event "Live Chess"]
[Site "Chess.com"]
[Date "2023.05.21"]
[Round "-"]
[White "Driftboard"]
[Black "Alfiedog12"]
[Result "1/2-1/2"]
[WhiteElo "885"]
[BlackElo "945"]
[TimeControl "300"]
[EndTime "4:09:16 PDT"]
[Termination "Game drawn - timeout vs insufficient material"]

1. e4 {[%clk 0:04:59.6]} 1... e6 {[%clk 0:04:57.2]} 2. Nf3 {[%clk 0:04:58.4]}
2... d5 {[%clk 0:04:54.4]} 3. exd5 {[%clk 0:04:56.9]} 3... exd5 {[%clk
0:04:53.2]} 4. Nc3 {[%clk 0:04:55.4]} 4... c6 {[%clk 0:04:51.2]} 5. Be2 {[%clk
0:04:52.3]} 5... Nf6 {[%clk 0:04:50.2]} 6. d3 {[%clk 0:04:51.4]} 6... Bg4 {[%clk
0:04:47.6]} 7. Bg5 {[%clk 0:04:50.1]} 7... Nbd7 {[%clk 0:04:44.7]} 8. h3 {[%clk
0:04:48.8]} 8... Bxf3 {[%clk 0:04:43.3]} 9. Bxf6 {[%clk 0:04:34.4]} 9... Nxf6
{[%clk 0:04:41.3]} 10. Bxf3 {[%clk 0:04:31.1]} 10... Bb4 {[%clk 0:04:40]} 11. a3
{[%clk 0:04:26.3]} 11... Qe7+ {[%clk 0:04:38.5]} 12. Be2 {[%clk 0:04:22]} 12...
Bd6 {[%clk 0:04:29]} 13. O-O {[%clk 0:04:20.5]} 13... O-O {[%clk 0:04:25.8]} 14.
Re1 {[%clk 0:04:19.7]} 14... Rfe8 {[%clk 0:04:25]} 15. Bf3 {[%clk 0:04:05.7]}
15... Qd7 {[%clk 0:04:11.8]} 16. Rxe8+ {[%clk 0:03:59.8]} 16... Rxe8 {[%clk
0:04:08.8]} 17. Qd2 {[%clk 0:03:55.5]} 17... Qe6 {[%clk 0:04:05]} 18. Kf1 {[%clk
0:03:46.1]} 18... Qf5 {[%clk 0:03:49.2]} 19. Re1 {[%clk 0:03:31.8]} 19... Rxe1+
{[%clk 0:03:32.4]} 20. Qxe1 {[%clk 0:03:30.3]} 20... h6 {[%clk 0:03:19.7]} 21.
Bg4 {[%clk 0:03:28.2]} 21... Nxg4 {[%clk 0:03:15]} 22. hxg4 {[%clk 0:03:27.2]}
22... Qxg4 {[%clk 0:03:13.8]} 23. Qe8+ {[%clk 0:03:24.8]} 23... Kh7 {[%clk
0:03:11.9]} 24. Qxf7 {[%clk 0:03:21.9]} 24... Qc8 {[%clk 0:02:52.5]} 25. g3
{[%clk 0:02:44.4]} 25... Qf8 {[%clk 0:02:49.3]} 26. Qxf8 {[%clk 0:02:42.6]}
26... Bxf8 {[%clk 0:02:47.4]} 27. Kg2 {[%clk 0:02:42.3]} 27... Kg6 {[%clk
0:02:44]} 28. Kf3 {[%clk 0:02:42]} 28... Kf5 {[%clk 0:02:42.8]} 29. g4+ {[%clk
0:02:40.5]} 29... Ke5 {[%clk 0:02:39.9]} 30. Ke3 {[%clk 0:02:38.2]} 30... Bc5+
{[%clk 0:02:35.5]} 31. d4+ {[%clk 0:02:37]} 31... Bxd4+ {[%clk 0:02:33.7]} 32.
Kf3 {[%clk 0:02:34.9]} 32... Bxc3 {[%clk 0:02:31.2]} 33. bxc3 {[%clk 0:02:32.6]}
33... c5 {[%clk 0:02:28.8]} 34. Ke3 {[%clk 0:02:29.3]} 34... b5 {[%clk
0:02:27.6]} 35. f4+ {[%clk 0:02:26.8]} 35... Kf6 {[%clk 0:02:22.5]} 36. Kd3
{[%clk 0:02:25.1]} 36... c4+ {[%clk 0:02:21]} 37. Kd4 {[%clk 0:02:23.7]} 37...
Ke6 {[%clk 0:02:19.8]} 38. Kc5 {[%clk 0:02:22]} 38... a6 {[%clk 0:02:17.8]} 39.
Kb6 {[%clk 0:02:20.8]} 39... Kd6 {[%clk 0:02:08.6]} 40. Kxa6 {[%clk 0:02:20]}
40... Kc5 {[%clk 0:02:07.5]} 41. Ka5 {[%clk 0:02:15.7]} 41... g6 {[%clk
0:02:05]} 42. f5 {[%clk 0:02:02.8]} 42... gxf5 {[%clk 0:01:59.3]} 43. gxf5
{[%clk 0:02:01.3]} 43... Kd6 {[%clk 0:01:57.4]} 44. f6 {[%clk 0:02:00.4]} 44...
Ke6 {[%clk 0:01:46.5]} 45. Kxb5 {[%clk 0:01:59.2]} 45... Kxf6 {[%clk 0:01:45.1]}
46. Kc5 {[%clk 0:01:58.7]} 46... h5 {[%clk 0:01:44.4]} 47. a4 {[%clk 0:01:57.3]}
47... h4 {[%clk 0:01:43.5]} 48. a5 {[%clk 0:01:56.3]} 48... h3 {[%clk
0:01:42.7]} 49. a6 {[%clk 0:01:55.7]} 49... h2 {[%clk 0:01:42]} 50. a7 {[%clk
0:01:55.2]} 50... h1=Q {[%clk 0:01:40.5]} 51. a8=Q {[%clk 0:01:54.1]} 51... Qg1+
{[%clk 0:01:34.9]} 52. Kxd5 {[%clk 0:01:50.8]} 52... Qd1+ {[%clk 0:01:30]} 53.
Kxc4 {[%clk 0:01:49.5]} 53... Qg4+ {[%clk 0:01:27.1]} 54. Kb3 {[%clk 0:01:47.8]}
54... Qe6+ {[%clk 0:01:24.1]} 55. Kb2 {[%clk 0:01:44.5]} 55... Qb6+ {[%clk
0:01:22.2]} 56. Kc1 {[%clk 0:01:43.6]} 56... Qg1+ {[%clk 0:01:20.4]} 57. Kb2
{[%clk 0:01:42.3]} 57... Qb6+ {[%clk 0:01:18.3]} 58. Kc1 {[%clk 0:01:41.6]}
58... Qg1+ {[%clk 0:01:16.9]} 59. Kd2 {[%clk 0:01:41.1]} 59... Qg2+ {[%clk
0:01:15.6]} 60. Kd3 {[%clk 0:01:40]} 60... Qxa8 {[%clk 0:01:14.1]} 61. Kc4
{[%clk 0:01:38.9]} 61... Qc8+ {[%clk 0:01:12.8]} 62. Kd4 {[%clk 0:01:38.5]}
62... Qd7+ {[%clk 0:01:11]} 63. Ke3 {[%clk 0:01:37.2]} 63... Qe6+ {[%clk
0:01:09.7]} 64. Kd3 {[%clk 0:01:35.7]} 64... Qd5+ {[%clk 0:01:07.6]} 65. Ke2
{[%clk 0:01:34.3]} 65... Ke5 {[%clk 0:01:06.7]} 66. Kf2 {[%clk 0:01:32.1]} 66...
Kf4 {[%clk 0:01:05.6]} 67. Ke2 {[%clk 0:01:30.9]} 67... Qe4+ {[%clk 0:01:00.8]}
68. Kd1 {[%clk 0:01:29.8]} 68... Ke3 {[%clk 0:00:58.4]} 69. Kc1 {[%clk
0:01:28.7]} 69... Qh1+ {[%clk 0:00:54.9]} 70. Kb2 {[%clk 0:01:27.3]} 70... Kd2
{[%clk 0:00:53.7]} 71. Kb3 {[%clk 0:01:25.7]} 71... Qb7+ {[%clk 0:00:50.5]} 72.
Kc4 {[%clk 0:01:22.5]} 72... Qc6+ {[%clk 0:00:48.6]} 73. Kd4 {[%clk 0:01:21.3]}
73... Kxc2 {[%clk 0:00:47.2]} 74. Ke3 {[%clk 0:01:18]} 74... Qe6+ {[%clk
0:00:44.8]} 75. Kd4 {[%clk 0:01:16.4]} 75... Qd6+ {[%clk 0:00:41.6]} 76. Ke3
{[%clk 0:01:14.9]} 76... Kxc3 {[%clk 0:00:40.2]} 77. Kf3 {[%clk 0:01:10.5]}
77... Kd3 {[%clk 0:00:37.6]} 78. Kg4 {[%clk 0:01:08.8]} 78... Ke4 {[%clk
0:00:35.9]} 79. Kg5 {[%clk 0:01:07.7]} 79... Qf4+ {[%clk 0:00:32.1]} 80. Kg6
{[%clk 0:01:05.9]} 80... Ke5 {[%clk 0:00:30.5]} 81. Kg7 {[%clk 0:01:05]} 81...
Ke6 {[%clk 0:00:29]} 82. Kg6 {[%clk 0:01:02.6]} 82... Qf5+ {[%clk 0:00:27]} 83.
Kg7 {[%clk 0:01:00.8]} 83... Ke7 {[%clk 0:00:24.9]} 84. Kh6 {[%clk 0:00:59.7]}
84... Qf6+ {[%clk 0:00:18.6]} 85. Kh5 {[%clk 0:00:58.4]} 85... Kf7 {[%clk
0:00:16.3]} 86. Kg4 {[%clk 0:00:52]} 86... Qg6+ {[%clk 0:00:14.1]} 87. Kf3
{[%clk 0:00:49.5]} 87... Qc6+ {[%clk 0:00:10.6]} 88. Ke3 {[%clk 0:00:47.4]}
88... Ke6 {[%clk 0:00:09.4]} 89. Kd3 {[%clk 0:00:45.2]} 89... Kd5 {[%clk
0:00:08.2]} 90. Ke3 {[%clk 0:00:44]} 90... Qe6+ {[%clk 0:00:06.2]} 91. Kd3
{[%clk 0:00:43]} 91... Qe4+ {[%clk 0:00:04.7]} 92. Kc3 {[%clk 0:00:40.7]} 92...
Qc4+ {[%clk 0:00:03.3]} 93. Kd2 {[%clk 0:00:39.6]} 93... Qg4 {[%clk 0:00:01.1]}
94. Kc3 {[%clk 0:00:37.9]} 1/2-1/2

[Event "Live Chess"]
[Site "Chess.com"]
[Date "2023.05.21"]
[Round "-"]
[White "chrisbradgate"]
[Black "SupremeTactician"]
[Result "0-1"]
[WhiteElo "873"]
[BlackElo "2230"]
[TimeControl "300"]
[EndTime "4:09:17 PDT"]
[Termination "SupremeTactician won by checkmate"]

1. d4 {[%clk 0:04:58.3]} 1... Nf6 {[%clk 0:04:58.9]} 2. Bf4 {[%clk 0:04:57]}
2... e6 {[%clk 0:04:58.3]} 3. e3 {[%clk 0:04:56.1]} 3... b6 {[%clk 0:04:57.6]}
4. c3 {[%clk 0:04:54]} 4... Bb7 {[%clk 0:04:57.1]} 5. Nd2 {[%clk 0:04:51.9]}
5... Be7 {[%clk 0:04:56.5]} 6. f3 {[%clk 0:04:45.9]} 6... d6 {[%clk 0:04:55.8]}
7. Bd3 {[%clk 0:04:44.7]} 7... Nbd7 {[%clk 0:04:55.2]} 8. Ne2 {[%clk 0:04:43]}
8... Nh5 {[%clk 0:04:54.8]} 9. Qc2 {[%clk 0:04:41.3]} 9... Nxf4 {[%clk
0:04:54.1]} 10. exf4 {[%clk 0:04:39.5]} 10... h6 {[%clk 0:04:53.7]} 11. O-O-O
{[%clk 0:04:38.5]} 11... a5 {[%clk 0:04:52.2]} 12. a3 {[%clk 0:04:33.3]} 12...
Ba6 {[%clk 0:04:50.4]} 13. Bxa6 {[%clk 0:04:30.6]} 13... Rxa6 {[%clk 0:04:50.3]}
14. Rhg1 {[%clk 0:04:26.3]} 14... b5 {[%clk 0:04:47.8]} 15. Ne4 {[%clk
0:04:23.6]} 15... f5 {[%clk 0:04:44.8]} 16. Nf2 {[%clk 0:04:21.1]} 16... b4
{[%clk 0:04:44.1]} 17. cxb4 {[%clk 0:04:10.6]} 17... axb4 {[%clk 0:04:44]} 18.
Rd3 {[%clk 0:03:51.5]} 18... bxa3 {[%clk 0:04:42.4]} 19. Rxa3 {[%clk 0:03:50.1]}
19... Rxa3 {[%clk 0:04:41.4]} 20. bxa3 {[%clk 0:03:49.1]} 20... Qa8 {[%clk
0:04:38.8]} 21. Qa2 {[%clk 0:03:37.4]} 21... d5 {[%clk 0:04:32.2]} 22. Kd2
{[%clk 0:03:27.7]} 22... Bb4+ {[%clk 0:04:29.1]} 23. Nc3 {[%clk 0:03:26.1]}
23... Qxa3 {[%clk 0:04:14.2]} 24. Qxa3 {[%clk 0:03:23.7]} 24... Bxa3 {[%clk
0:04:14.1]} 25. Ra1 {[%clk 0:03:20.9]} 25... Nb6 {[%clk 0:04:12.5]} 26. Rxa3
{[%clk 0:03:16.1]} 26... Nc4+ {[%clk 0:04:11.8]} 27. Kc2 {[%clk 0:03:12.3]}
27... Nxa3+ {[%clk 0:04:11.7]} 28. Kb3 {[%clk 0:03:10.6]} 28... Nc4 {[%clk
0:04:11.6]} 29. Nd3 {[%clk 0:03:08.4]} 29... Ke7 {[%clk 0:04:09.1]} 30. Nc5
{[%clk 0:03:03.5]} 30... Rb8+ {[%clk 0:04:09]} 31. Kc2 {[%clk 0:03:01.1]} 31...
Rb2+ {[%clk 0:04:07.9]} 32. Kd3 {[%clk 0:02:59.5]} 32... Rd2# {[%clk 0:04:07.4]}
0-1

[Event "Live Chess"]
[Site "Chess.com"]
[Date "2023.05.21"]
[Round "-"]
[White "Conradical12"]
[Black "Dhaydon19"]
[Result "0-1"]
[WhiteElo "1565"]
[BlackElo "2697"]
[TimeControl "300"]
[EndTime "4:09:26 PDT"]
[Termination "Dhaydon19 won by resignation"]

1. e4 {[%clk 0:04:56.7]} 1... b6 {[%clk 0:04:59.6]} 2. Nc3 {[%clk 0:04:51.6]}
2... Bb7 {[%clk 0:04:59.1]} 3. f3 {[%clk 0:04:51]} 3... e6 {[%clk 0:04:58.4]} 4.
d4 {[%clk 0:04:50.3]} 4... d5 {[%clk 0:04:57.5]} 5. Bd3 {[%clk 0:04:49]} 5...
Nf6 {[%clk 0:04:55.9]} 6. Nge2 {[%clk 0:04:47.9]} 6... c5 {[%clk 0:04:55.2]} 7.
b3 {[%clk 0:04:39.6]} 7... cxd4 {[%clk 0:04:51.6]} 8. Nxd4 {[%clk 0:04:37.7]}
8... Nbd7 {[%clk 0:04:49.2]} 9. O-O {[%clk 0:04:36.1]} 9... Bc5 {[%clk 0:04:46]}
10. Be3 {[%clk 0:04:34]} 10... e5 {[%clk 0:04:43.6]} 11. Ncb5 {[%clk 0:04:24.7]}
11... exd4 {[%clk 0:04:41]} 12. Bxd4 {[%clk 0:04:22.9]} 12... O-O {[%clk
0:04:38.2]} 13. Bxc5 {[%clk 0:04:20.3]} 0-1

[Event "Live Chess"]
[Site "Chess.com"]
[Date "2023.05.21"]
[Round "-"]
[White "Shepherds_Pie"]
[Black "Geomorph"]
[Result "1-0"]
[WhiteElo "1948"]
[BlackElo "1283"]
[TimeControl "300"]
[EndTime "4:09:36 PDT"]
[Termination "Shepherds_Pie won by resignation"]

1. c4 {[%clk 0:04:57.7]} 1... e6 {[%clk 0:04:58.4]} 2. Nc3 {[%clk 0:04:56.4]}
2... Nf6 {[%clk 0:04:58.1]} 3. e4 {[%clk 0:04:54.4]} 3... Bb4 {[%clk 0:04:57.2]}
4. e5 {[%clk 0:04:53.1]} 4... Bxc3 {[%clk 0:04:56.5]} 5. dxc3 {[%clk 0:04:52]}
5... Ng8 {[%clk 0:04:52.6]} 6. Qg4 {[%clk 0:04:50.7]} 6... g6 {[%clk 0:04:50.5]}
7. h4 {[%clk 0:04:49.4]} 7... Nh6 {[%clk 0:04:46.4]} 8. Bxh6 {[%clk 0:04:46.4]}
8... Nc6 {[%clk 0:04:42.7]} 9. Bg7 {[%clk 0:04:44.8]} 9... Rg8 {[%clk
0:04:40.8]} 10. Bf6 {[%clk 0:04:43.7]} 10... Ne7 {[%clk 0:04:37.6]} 11. Qg5
{[%clk 0:04:38.8]} 11... d6 {[%clk 0:04:30.6]} 12. O-O-O {[%clk 0:04:36.2]}
12... d5 {[%clk 0:04:24.2]} 13. cxd5 {[%clk 0:04:33.7]} 1-0

[Event "Live Chess"]
[Site "Chess.com"]
[Date "2023.05.21"]
[Round "-"]
[White "KeithArkell"]
[Black "Tushinskiy"]
[Result "1-0"]
[WhiteElo "2503"]
[BlackElo "2190"]
[TimeControl "300"]
[EndTime "4:09:47 PDT"]
[Termination "KeithArkell won on time"]

1. d4 {[%clk 0:04:58.4]} 1... d5 {[%clk 0:04:53.4]} 2. Nf3 {[%clk 0:04:53.7]}
2... c6 {[%clk 0:04:53.3]} 3. c4 {[%clk 0:04:52.7]} 3... e6 {[%clk 0:04:50.1]}
4. cxd5 {[%clk 0:04:51.4]} 4... exd5 {[%clk 0:04:48.8]} 5. Nc3 {[%clk 0:04:50]}
5... Nf6 {[%clk 0:04:47.6]} 6. Qc2 {[%clk 0:04:48.5]} 6... Bg4 {[%clk
0:04:40.6]} 7. Ne5 {[%clk 0:04:46.4]} 7... Bh5 {[%clk 0:04:32.7]} 8. Bg5 {[%clk
0:04:43.8]} 8... Nbd7 {[%clk 0:04:31.1]} 9. Nxd7 {[%clk 0:04:42.3]} 9... Qxd7
{[%clk 0:04:30.1]} 10. Bxf6 {[%clk 0:04:41.5]} 10... gxf6 {[%clk 0:04:30]} 11.
e3 {[%clk 0:04:40.8]} 11... Bg6 {[%clk 0:04:28.7]} 12. Bd3 {[%clk 0:04:39.8]}
12... Bd6 {[%clk 0:04:27.8]} 13. O-O-O {[%clk 0:04:35]} 13... O-O-O {[%clk
0:04:14.8]} 14. g3 {[%clk 0:04:32.9]} 14... Kb8 {[%clk 0:04:13]} 15. Kb1 {[%clk
0:04:32]} 15... Qg4 {[%clk 0:04:07.7]} 16. h4 {[%clk 0:04:27.6]} 16... Qf3
{[%clk 0:04:06.3]} 17. Rhf1 {[%clk 0:04:17.2]} 17... Rhe8 {[%clk 0:04:02.4]} 18.
Qe2 {[%clk 0:04:14.4]} 18... Bxd3+ {[%clk 0:03:50.6]} 19. Rxd3 {[%clk
0:04:12.4]} 19... Qf5 {[%clk 0:03:48.9]} 20. Qc2 {[%clk 0:04:06.9]} 20... Bxg3
{[%clk 0:03:43.5]} 21. Rd2 {[%clk 0:04:03.3]} 21... Qxc2+ {[%clk 0:03:39.9]} 22.
Kxc2 {[%clk 0:04:00.8]} 22... Bxh4 {[%clk 0:03:38.1]} 23. Rh1 {[%clk 0:04:00]}
23... Bg5 {[%clk 0:03:33.5]} 24. Rxh7 {[%clk 0:03:58.9]} 24... Rh8 {[%clk
0:03:30.3]} 25. Rxf7 {[%clk 0:03:56.1]} 25... Rh2 {[%clk 0:03:27.4]} 26. Na4
{[%clk 0:03:53.3]} 26... b6 {[%clk 0:03:24.8]} 27. Kd3 {[%clk 0:03:50]} 27...
Rdh8 {[%clk 0:03:15]} 28. Rc2 {[%clk 0:03:45.7]} 28... Rc8 {[%clk 0:02:56.4]}
29. Nc3 {[%clk 0:03:41.4]} 29... Bh4 {[%clk 0:02:52]} 30. f4 {[%clk 0:03:28.1]}
30... Rh3 {[%clk 0:02:47.4]} 31. Rh7 {[%clk 0:03:25.2]} 31... Re8 {[%clk
0:02:46]} 32. Re2 {[%clk 0:03:24.1]} 32... Rg8 {[%clk 0:02:35.2]} 33. Nd1 {[%clk
0:03:20]} 33... Rgg3 {[%clk 0:02:33.7]} 34. Nf2 {[%clk 0:03:17.7]} 34... Rh2
{[%clk 0:02:27.1]} 35. Nd1 {[%clk 0:03:06.9]} 35... Rh1 {[%clk 0:02:24]} 36. Nc3
{[%clk 0:02:55.5]} 36... Rhh3 {[%clk 0:02:21.4]} 37. b4 {[%clk 0:02:53.5]} 37...
Rf3 {[%clk 0:02:16.8]} 38. Kc2 {[%clk 0:02:40.1]} 38... a6 {[%clk 0:02:03.8]}
39. a4 {[%clk 0:02:38.5]} 39... b5 {[%clk 0:02:02.7]} 40. axb5 {[%clk
0:02:30.4]} 40... axb5 {[%clk 0:02:02.6]} 41. Nd1 {[%clk 0:02:16.6]} 41... f5
{[%clk 0:02:00.3]} 42. Nb2 {[%clk 0:02:13.2]} 42... Bd8 {[%clk 0:01:57.7]} 43.
Rxh3 {[%clk 0:02:11.4]} 43... Rxh3 {[%clk 0:01:56.4]} 44. Nd3 {[%clk 0:02:04.1]}
44... Be7 {[%clk 0:01:54.4]} 45. Kd2 {[%clk 0:01:42.7]} 45... Kc7 {[%clk
0:01:49.5]} 46. Rg2 {[%clk 0:01:41.7]} 46... Kd7 {[%clk 0:01:37.3]} 47. Rg7
{[%clk 0:01:39.3]} 47... Ke6 {[%clk 0:01:17.1]} 48. Rg6+ {[%clk 0:01:28.5]}
48... Kf7 {[%clk 0:01:13.9]} 49. Ne5+ {[%clk 0:01:27.4]} 49... Ke8 {[%clk
0:00:46.9]} 50. Nxc6 {[%clk 0:01:25.5]} 1-0